[Event "Early-Titled-Tuesday-Blitz-May-07-2024"]
[Site "Chess.com"]
[Date "2024.05.07"]
[Round "5"]
[White "slorovel"]
[Black "SchmakAttack"]
[Result "0-1"]
[WhiteElo "2526"]
[BlackElo "2780"]
[TimeControl "180+1"]
[EndTime "9:00:20 PDT"]
[Termination "SchmakAttack won on time"]

1. e4 {[%clk 0:02:59.4]} 1... c5 {[%clk 0:02:59.9]} 2. Nf3 {[%clk 0:02:59]} 2...
Nc6 {[%clk 0:03:00]} 3. Bb5 {[%clk 0:02:58.5]} 3... Nf6 {[%clk 0:02:59.9]} 4.
Nc3 {[%clk 0:02:56.9]} 4... Qc7 {[%clk 0:02:56.9]} 5. O-O {[%clk 0:02:56.2]}
5... Nd4 {[%clk 0:02:42.4]} 6. Re1 {[%clk 0:02:54.8]} 6... e5 {[%clk 0:02:21.8]}
7. Bc4 {[%clk 0:02:45.7]} 7... Be7 {[%clk 0:02:14.7]} 8. d3 {[%clk 0:02:43.1]}
8... h6 {[%clk 0:02:11.6]} 9. a4 {[%clk 0:02:41.5]} 9... d6 {[%clk 0:02:07.9]}
10. Nd5 {[%clk 0:02:36.2]} 10... Nxd5 {[%clk 0:02:07.4]} 11. Bxd5 {[%clk
0:02:37.1]} 11... Bg4 {[%clk 0:02:03.3]} 12. c3 {[%clk 0:02:33]} 12... Nxf3+
{[%clk 0:02:00.1]} 13. gxf3 {[%clk 0:02:33.9]} 13... Be6 {[%clk 0:01:59.6]} 14.
Qb3 {[%clk 0:02:15.6]} 14... Bxd5 {[%clk 0:01:59.5]} 15. Qxd5 {[%clk 0:02:16.5]}
15... Qc6 {[%clk 0:01:59.9]} 16. c4 {[%clk 0:01:58]} 16... Qd7 {[%clk
0:01:25.8]} 17. Kf1 {[%clk 0:01:35.5]} 17... g5 {[%clk 0:01:18.6]} 18. Ke2
{[%clk 0:01:31.1]} 18... Bd8 {[%clk 0:00:35.7]} 19. Bd2 {[%clk 0:01:29.2]} 19...
Qc6 {[%clk 0:00:33.7]} 20. Rg1 {[%clk 0:01:21.8]} 20... Qxd5 {[%clk 0:00:30.4]}
21. cxd5 {[%clk 0:01:20.6]} 21... Kd7 {[%clk 0:00:20.6]} 22. b3 {[%clk
0:01:07.8]} 22... Be7 {[%clk 0:00:17.8]} 23. Rg3 {[%clk 0:01:04.4]} 23... Raf8
{[%clk 0:00:17.6]} 24. Rh3 {[%clk 0:00:59.3]} 24... f5 {[%clk 0:00:17.4]} 25.
Rh5 {[%clk 0:00:57.4]} 25... f4 {[%clk 0:00:11.4]} 26. Rg1 {[%clk 0:00:50.2]}
26... Bd8 {[%clk 0:00:11.3]} 27. Bc3 {[%clk 0:00:48.2]} 27... Ke8 {[%clk
0:00:09.3]} 28. Kf1 {[%clk 0:00:45.3]} 28... Kf7 {[%clk 0:00:09.3]} 29. Ke2
{[%clk 0:00:38.2]} 29... Be7 {[%clk 0:00:05.7]} 30. Kd2 {[%clk 0:00:25.8]} 30...
Rc8 {[%clk 0:00:05.3]} 31. Bb2 {[%clk 0:00:16.7]} 31... Kg6 {[%clk 0:00:05.4]}
32. Rh4 {[%clk 0:00:16.4]} 32... h5 {[%clk 0:00:04.7]} 33. Rh3 {[%clk
0:00:14.4]} 33... Kf6 {[%clk 0:00:04]} 34. Bc3 {[%clk 0:00:12.9]} 34... Rcg8
{[%clk 0:00:04]} 35. Ke2 {[%clk 0:00:10.8]} 35... Rc8 {[%clk 0:00:04]} 36. Kd2
{[%clk 0:00:10.7]} 36... b6 {[%clk 0:00:04]} 37. Rg2 {[%clk 0:00:09.8]} 37... a6
{[%clk 0:00:04.1]} 38. Rg1 {[%clk 0:00:09.7]} 38... Ra8 {[%clk 0:00:03.4]} 39.
Ra1 {[%clk 0:00:08.9]} 39... b5 {[%clk 0:00:03.8]} 40. axb5 {[%clk 0:00:08.9]}
40... axb5 {[%clk 0:00:04.7]} 41. Rxa8 {[%clk 0:00:07.6]} 41... Rxa8 {[%clk
0:00:05.6]} 42. Rxh5 {[%clk 0:00:07.8]} 42... Kg6 {[%clk 0:00:06.4]} 43. Rh3
{[%clk 0:00:07.1]} 43... Ra2+ {[%clk 0:00:05]} 44. Ke1 {[%clk 0:00:06.6]} 44...
b4 {[%clk 0:00:03.8]} 45. Bd2 {[%clk 0:00:06.9]} 45... Bf6 {[%clk 0:00:04.1]}
46. Kd1 {[%clk 0:00:05.3]} 46... Rb2 {[%clk 0:00:04.4]} 47. Kc1 {[%clk
0:00:05.1]} 47... Rxb3 {[%clk 0:00:05]} 48. Kc2 {[%clk 0:00:05.3]} 48... Ra3
{[%clk 0:00:05.7]} 49. Bc1 {[%clk 0:00:05]} 49... Ra2+ {[%clk 0:00:06]} 50. Bb2
{[%clk 0:00:05.3]} 50... Ra8 {[%clk 0:00:06.7]} 51. Kc1 {[%clk 0:00:04.5]} 51...
Rc8 {[%clk 0:00:04.3]} 52. Kd2 {[%clk 0:00:04.3]} 52... c4 {[%clk 0:00:04.6]}
53. dxc4 {[%clk 0:00:04.3]} 53... Rxc4 {[%clk 0:00:05.5]} 54. Kd3 {[%clk
0:00:04.6]} 54... Rc8 {[%clk 0:00:05.7]} 55. Kd2 {[%clk 0:00:05.1]} 55... b3
{[%clk 0:00:05.9]} 56. Kd1 {[%clk 0:00:03.4]} 56... Rc2 {[%clk 0:00:06]} 57. Ba3
{[%clk 0:00:03.4]} 57... Rxf2 {[%clk 0:00:05.4]} 58. Bc1 {[%clk 0:00:03.5]}
58... b2 {[%clk 0:00:05.3]} 59. Bxb2 {[%clk 0:00:03.7]} 59... Rxb2 {[%clk
0:00:06.2]} 60. Ke1 {[%clk 0:00:03.2]} 60... Rb3 {[%clk 0:00:05]} 61. Kf2 {[%clk
0:00:03.1]} 61... g4 {[%clk 0:00:05.4]} 0-1

[Event "Early-Titled-Tuesday-Blitz-May-07-2024"]
[Site "Chess.com"]
[Date "2024.05.07"]
[Round "5"]
[White "Silvederione"]
[Black "IMchanged"]
[Result "0-1"]
[WhiteElo "2499"]
[BlackElo "2758"]
[TimeControl "180+1"]
[EndTime "9:00:21 PDT"]
[Termination "IMchanged won by checkmate"]

1. d4 {[%clk 0:02:56.6]} 1... g6 {[%clk 0:02:58.5]} 2. Nc3 {[%clk 0:02:56.1]}
2... Bg7 {[%clk 0:02:58.1]} 3. Bf4 {[%clk 0:02:56.8]} 3... c5 {[%clk 0:02:55.6]}
4. dxc5 {[%clk 0:02:57.1]} 4... Qa5 {[%clk 0:02:55.3]} 5. Bd2 {[%clk 0:02:56.8]}
5... Qxc5 {[%clk 0:02:55.2]} 6. e4 {[%clk 0:02:57]} 6... d6 {[%clk 0:02:50.1]}
7. Nf3 {[%clk 0:02:53.3]} 7... Bg4 {[%clk 0:02:48.3]} 8. h3 {[%clk 0:02:52.9]}
8... Bxf3 {[%clk 0:02:47.8]} 9. Qxf3 {[%clk 0:02:53.8]} 9... Nc6 {[%clk
0:02:48.6]} 10. Bd3 {[%clk 0:02:42.5]} 10... Ne5 {[%clk 0:02:44.9]} 11. Qe2
{[%clk 0:02:41]} 11... Nxd3+ {[%clk 0:02:45.5]} 12. cxd3 {[%clk 0:02:41.9]}
12... Nf6 {[%clk 0:02:44.3]} 13. O-O {[%clk 0:02:40.4]} 13... O-O {[%clk
0:02:44.7]} 14. Rac1 {[%clk 0:02:36.8]} 14... Qb6 {[%clk 0:02:44.6]} 15. Be3
{[%clk 0:02:36.3]} 15... Qa6 {[%clk 0:02:44.9]} 16. Rc2 {[%clk 0:02:26.8]} 16...
Rfc8 {[%clk 0:02:40.8]} 17. Rfc1 {[%clk 0:02:27.2]} 17... b5 {[%clk 0:02:38.6]}
18. d4 {[%clk 0:02:14.9]} 18... Qb7 {[%clk 0:02:04.3]} 19. e5 {[%clk 0:00:55.3]}
19... Nd5 {[%clk 0:01:26.5]} 20. Nxd5 {[%clk 0:00:49.1]} 20... Rxc2 {[%clk
0:01:26.5]} 21. Nxe7+ {[%clk 0:00:34.5]} 21... Qxe7 {[%clk 0:01:27.4]} 22. Qxc2
{[%clk 0:00:33.4]} 22... dxe5 {[%clk 0:01:26.7]} 23. Qc6 {[%clk 0:00:12]} 23...
Rd8 {[%clk 0:01:20.9]} 24. d5 {[%clk 0:00:11.3]} 24... Qb4 {[%clk 0:01:17.4]}
25. Qc7 {[%clk 0:00:05.2]} 25... Bf6 {[%clk 0:00:48.8]} 26. d6 {[%clk
0:00:03.7]} 26... Qxd6 {[%clk 0:00:47.2]} 27. Qxd6 {[%clk 0:00:03.8]} 27... Rxd6
{[%clk 0:00:47.9]} 28. Bxa7 {[%clk 0:00:04.4]} 28... Ra6 {[%clk 0:00:45.1]} 29.
Bc5 {[%clk 0:00:04.5]} 29... Rxa2 {[%clk 0:00:43.6]} 30. Ba3 {[%clk 0:00:04.8]}
30... h5 {[%clk 0:00:38.2]} 31. Rc8+ {[%clk 0:00:04.6]} 31... Kg7 {[%clk
0:00:37.5]} 32. Rb8 {[%clk 0:00:05.2]} 32... Ra1+ {[%clk 0:00:28]} 33. Kh2
{[%clk 0:00:05.3]} 33... Rf1 {[%clk 0:00:28.8]} 34. Kg3 {[%clk 0:00:04.3]} 34...
e4 {[%clk 0:00:27.6]} 35. Rxb5 {[%clk 0:00:03.7]} 35... h4+ {[%clk 0:00:28.3]}
36. Kg4 {[%clk 0:00:03.8]} 36... Rxf2 {[%clk 0:00:28.5]} 37. g3 {[%clk 0:00:04]}
37... Rg2 {[%clk 0:00:25.9]} 38. Kf4 {[%clk 0:00:04.5]} 38... Rxg3 {[%clk
0:00:23.5]} 39. Kxe4 {[%clk 0:00:05]} 39... Rxh3 {[%clk 0:00:24.2]} 40. Rb8
{[%clk 0:00:05.1]} 40... Rg3 {[%clk 0:00:20.8]} 41. Bf8+ {[%clk 0:00:05]} 41...
Kh7 {[%clk 0:00:21.4]} 42. Bd6 {[%clk 0:00:05.4]} 42... Rg4+ {[%clk 0:00:21.1]}
43. Kd5 {[%clk 0:00:05.6]} 43... Rd4+ {[%clk 0:00:21.3]} 44. Kc6 {[%clk
0:00:05.8]} 44... h3 {[%clk 0:00:21.8]} 45. Rf8 {[%clk 0:00:05.3]} 45... Rxd6+
{[%clk 0:00:17.2]} 46. Kxd6 {[%clk 0:00:04.9]} 46... Kg7 {[%clk 0:00:18.1]} 47.
Rc8 {[%clk 0:00:04.4]} 47... Bxb2 {[%clk 0:00:17.6]} 48. Rc2 {[%clk 0:00:04.7]}
48... g5 {[%clk 0:00:13.4]} 49. Rxb2 {[%clk 0:00:04.6]} 49... g4 {[%clk
0:00:14.1]} 50. Ke5 {[%clk 0:00:05.2]} 50... g3 {[%clk 0:00:14.5]} 51. Kf4
{[%clk 0:00:05.8]} 51... h2 {[%clk 0:00:15.2]} 52. Rg2 {[%clk 0:00:05.4]} 52...
h1=Q {[%clk 0:00:15.2]} 53. Rxg3+ {[%clk 0:00:06.3]} 53... Kf6 {[%clk
0:00:15.9]} 54. Kg4 {[%clk 0:00:06.7]} 54... Ke5 {[%clk 0:00:15.6]} 55. Rf3
{[%clk 0:00:07.6]} 55... Qh7 {[%clk 0:00:13.9]} 56. Rg3 {[%clk 0:00:08.5]} 56...
Qf5+ {[%clk 0:00:13.7]} 57. Kh4 {[%clk 0:00:09.4]} 57... Qf4+ {[%clk 0:00:11.8]}
58. Kh3 {[%clk 0:00:09.5]} 58... f5 {[%clk 0:00:11.7]} 59. Kg2 {[%clk
0:00:09.5]} 59... Qe4+ {[%clk 0:00:11.8]} 60. Kf2 {[%clk 0:00:09.8]} 60... f4
{[%clk 0:00:11.5]} 61. Rg5+ {[%clk 0:00:10.5]} 61... Kf6 {[%clk 0:00:12]} 62.
Rg2 {[%clk 0:00:10.6]} 62... Qe3+ {[%clk 0:00:12.6]} 63. Kf1 {[%clk 0:00:10.7]}
63... f3 {[%clk 0:00:13.3]} 64. Rc2 {[%clk 0:00:10.1]} 64... Qd3+ {[%clk
0:00:13.1]} 65. Ke1 {[%clk 0:00:09.1]} 65... Qxc2 {[%clk 0:00:13]} 66. Kf1
{[%clk 0:00:09.3]} 66... Qe2+ {[%clk 0:00:13.9]} 67. Kg1 {[%clk 0:00:09.3]}
67... Qg2# {[%clk 0:00:14.8]} 0-1

[Event "Early-Titled-Tuesday-Blitz-May-07-2024"]
[Site "Chess.com"]
[Date "2024.05.07"]
[Round "5"]
[White "Silent-Killer100"]
[Black "CruzWilliam"]
[Result "1/2-1/2"]
[WhiteElo "2564"]
[BlackElo "2407"]
[TimeControl "180+1"]
[EndTime "9:00:25 PDT"]
[Termination "Game drawn - insufficient material"]

1. f4 {[%clk 0:02:47.8]} 1... Nf6 {[%clk 0:02:57.3]} 2. Nf3 {[%clk 0:02:47.6]}
2... g6 {[%clk 0:02:56.1]} 3. g3 {[%clk 0:02:48.5]} 3... Bg7 {[%clk 0:02:55.8]}
4. Bg2 {[%clk 0:02:46]} 4... O-O {[%clk 0:02:55.8]} 5. O-O {[%clk 0:02:25.3]}
5... d5 {[%clk 0:02:54.8]} 6. d3 {[%clk 0:02:25.8]} 6... c5 {[%clk 0:02:52.2]}
7. Qe1 {[%clk 0:02:25.9]} 7... d4 {[%clk 0:02:49.4]} 8. e4 {[%clk 0:02:26.2]}
8... dxe3 {[%clk 0:02:48.7]} 9. Qxe3 {[%clk 0:02:26.8]} 9... Nbd7 {[%clk
0:02:36.2]} 10. Nc3 {[%clk 0:02:25.1]} 10... Rb8 {[%clk 0:02:32.2]} 11. h3
{[%clk 0:02:08.7]} 11... b6 {[%clk 0:02:31.1]} 12. Ne5 {[%clk 0:02:08.5]} 12...
Nxe5 {[%clk 0:02:25.2]} 13. fxe5 {[%clk 0:02:09.4]} 13... Ne8 {[%clk 0:02:20.7]}
14. Bd2 {[%clk 0:02:06.5]} 14... Bb7 {[%clk 0:02:17.3]} 15. Rae1 {[%clk
0:01:59.5]} 15... Nc7 {[%clk 0:02:09.2]} 16. Bxb7 {[%clk 0:01:45.5]} 16... Rxb7
{[%clk 0:02:09.1]} 17. Qe4 {[%clk 0:01:46.4]} 17... Qd4+ {[%clk 0:02:04.1]} 18.
Kg2 {[%clk 0:01:39.4]} 18... Qxe4+ {[%clk 0:02:03.3]} 19. Rxe4 {[%clk
0:01:40.3]} 19... Ne6 {[%clk 0:01:57.1]} 20. Ne2 {[%clk 0:01:40.5]} 20... Rd8
{[%clk 0:01:51.3]} 21. Nf4 {[%clk 0:01:34.9]} 21... Nxf4+ {[%clk 0:01:48]} 22.
gxf4 {[%clk 0:01:32.7]} 22... e6 {[%clk 0:01:43.4]} 23. Ra4 {[%clk 0:01:31.1]}
23... b5 {[%clk 0:01:42]} 24. Ra5 {[%clk 0:01:26.2]} 24... c4 {[%clk 0:01:39.7]}
25. Rf3 {[%clk 0:01:26.2]} 25... cxd3 {[%clk 0:01:35.8]} 26. Rxd3 {[%clk
0:01:24.2]} 26... Rxd3 {[%clk 0:01:35.3]} 27. cxd3 {[%clk 0:01:25.1]} 27... g5
{[%clk 0:01:11.4]} 28. Kf3 {[%clk 0:01:23.1]} 28... gxf4 {[%clk 0:01:07.9]} 29.
Bxf4 {[%clk 0:01:24]} 29... f6 {[%clk 0:01:04.6]} 30. Ke4 {[%clk 0:01:15.9]}
30... b4 {[%clk 0:00:52.9]} 31. Be3 {[%clk 0:01:07.2]} 31... f5+ {[%clk
0:00:48]} 32. Kf3 {[%clk 0:00:55.9]} 32... Rd7 {[%clk 0:00:42.9]} 33. Ke2 {[%clk
0:00:36.3]} 33... Rc7 {[%clk 0:00:41.6]} 34. Kd2 {[%clk 0:00:28.6]} 34... Kf7
{[%clk 0:00:34]} 35. Rxa7 {[%clk 0:00:25.6]} 35... Rxa7 {[%clk 0:00:31.9]} 36.
Bxa7 {[%clk 0:00:26.5]} 36... Bxe5 {[%clk 0:00:32]} 37. d4 {[%clk 0:00:24.8]}
37... Bd6 {[%clk 0:00:30.2]} 38. Kd3 {[%clk 0:00:17.6]} 38... Ke8 {[%clk
0:00:21.1]} 39. Kc4 {[%clk 0:00:16.8]} 39... Kd7 {[%clk 0:00:21.2]} 40. Bc5
{[%clk 0:00:13.5]} 40... Bxc5 {[%clk 0:00:13.5]} 41. Kxc5 {[%clk 0:00:13.3]}
41... f4 {[%clk 0:00:10.3]} 42. Kc4 {[%clk 0:00:13.8]} 42... Kd6 {[%clk
0:00:10]} 43. a4 {[%clk 0:00:09.8]} 43... bxa3 {[%clk 0:00:08.4]} 44. bxa3
{[%clk 0:00:10.7]} 44... Kc6 {[%clk 0:00:08.3]} 45. a4 {[%clk 0:00:10.4]} 45...
Kb6 {[%clk 0:00:06.1]} 46. Kd3 {[%clk 0:00:10.8]} 46... Ka5 {[%clk 0:00:05.5]}
47. Ke4 {[%clk 0:00:11.4]} 47... Kxa4 {[%clk 0:00:06.4]} 48. Kxf4 {[%clk
0:00:11.6]} 48... Kb4 {[%clk 0:00:06.7]} 49. Ke5 {[%clk 0:00:11.5]} 49... Kc4
{[%clk 0:00:07.1]} 50. h4 {[%clk 0:00:11]} 50... h5 {[%clk 0:00:05.4]} 51. Kxe6
{[%clk 0:00:10.3]} 51... Kxd4 {[%clk 0:00:05.7]} 52. Kf5 {[%clk 0:00:10.7]}
52... Kd5 {[%clk 0:00:06.3]} 53. Kg5 {[%clk 0:00:11.1]} 53... Ke5 {[%clk
0:00:06.8]} 54. Kxh5 {[%clk 0:00:10.8]} 54... Kf5 {[%clk 0:00:06.8]} 55. Kh6
{[%clk 0:00:11]} 55... Kf6 {[%clk 0:00:07.1]} 56. Kh7 {[%clk 0:00:11.7]} 56...
Kf7 {[%clk 0:00:07.4]} 57. h5 {[%clk 0:00:12.2]} 57... Kf8 {[%clk 0:00:06.4]}
58. Kh8 {[%clk 0:00:10]} 58... Kf7 {[%clk 0:00:06.3]} 59. Kh7 {[%clk 0:00:10.6]}
59... Kf8 {[%clk 0:00:06.4]} 60. Kg6 {[%clk 0:00:11.2]} 60... Kg8 {[%clk
0:00:06.6]} 61. h6 {[%clk 0:00:11.6]} 61... Kh8 {[%clk 0:00:07.1]} 62. Kg5
{[%clk 0:00:12.2]} 62... Kg8 {[%clk 0:00:07.6]} 63. Kh5 {[%clk 0:00:13.1]} 63...
Kh8 {[%clk 0:00:08.3]} 64. Kg6 {[%clk 0:00:13.6]} 64... Kg8 {[%clk 0:00:09]} 65.
Kf6 {[%clk 0:00:14.1]} 65... Kh8 {[%clk 0:00:09.9]} 66. Kf7 {[%clk 0:00:14.1]}
66... Kh7 {[%clk 0:00:10.2]} 67. Kf6 {[%clk 0:00:11]} 67... Kxh6 {[%clk
0:00:11.1]} 1/2-1/2

[Event "Early-Titled-Tuesday-Blitz-May-07-2024"]
[Site "Chess.com"]
[Date "2024.05.07"]
[Round "5"]
[White "azikom"]
[Black "mary-sanna"]
[Result "1-0"]
[WhiteElo "2733"]
[BlackElo "2217"]
[TimeControl "180+1"]
[EndTime "9:00:27 PDT"]
[Termination "azikom won on time"]

1. c4 {[%clk 0:02:57.9]} 1... e5 {[%clk 0:02:56.7]} 2. Nc3 {[%clk 0:02:58.3]}
2... Bc5 {[%clk 0:02:51.9]} 3. e3 {[%clk 0:02:59.2]} 3... c6 {[%clk 0:02:51.2]}
4. Nf3 {[%clk 0:02:59.2]} 4... Qe7 {[%clk 0:02:49.2]} 5. d4 {[%clk 0:02:56.1]}
5... exd4 {[%clk 0:02:48.1]} 6. Nxd4 {[%clk 0:02:57]} 6... d6 {[%clk 0:02:35.8]}
7. Be2 {[%clk 0:02:55.8]} 7... Nf6 {[%clk 0:02:35.4]} 8. O-O {[%clk 0:02:54.8]}
8... O-O {[%clk 0:02:35.6]} 9. a3 {[%clk 0:02:54.5]} 9... a5 {[%clk 0:02:33.3]}
10. b3 {[%clk 0:02:54]} 10... Re8 {[%clk 0:02:23]} 11. Bb2 {[%clk 0:02:53.4]}
11... Nbd7 {[%clk 0:02:22.6]} 12. Na4 {[%clk 0:02:51.8]} 12... Ba7 {[%clk
0:02:21.8]} 13. Nf5 {[%clk 0:02:48.1]} 13... Qe6 {[%clk 0:02:06.6]} 14. Nxd6
{[%clk 0:02:45.9]} 14... Re7 {[%clk 0:02:06.6]} 15. Nxc8 {[%clk 0:02:40.3]}
15... Rxc8 {[%clk 0:02:07.5]} 16. Bd4 {[%clk 0:02:37.7]} 16... Bb8 {[%clk
0:02:01]} 17. g3 {[%clk 0:02:32.2]} 17... h5 {[%clk 0:01:42.3]} 18. Bxh5 {[%clk
0:02:27.9]} 18... Qh3 {[%clk 0:01:35.5]} 19. Bf3 {[%clk 0:02:26.6]} 19... Ne5
{[%clk 0:01:04]} 20. Bg2 {[%clk 0:02:25.9]} 20... Qh5 {[%clk 0:01:00.7]} 21.
Qxh5 {[%clk 0:02:24.7]} 21... Nxh5 {[%clk 0:01:00.8]} 22. Rfd1 {[%clk
0:02:18.3]} 22... Rce8 {[%clk 0:00:58.7]} 23. Nc5 {[%clk 0:02:14.7]} 23... Nf6
{[%clk 0:00:51.2]} 24. Nd3 {[%clk 0:02:08.9]} 24... Nfd7 {[%clk 0:00:35.7]} 25.
Nxe5 {[%clk 0:02:05.3]} 25... Nxe5 {[%clk 0:00:36.6]} 26. c5 {[%clk 0:01:54.2]}
26... g5 {[%clk 0:00:24.1]} 27. h3 {[%clk 0:01:50.1]} 27... f6 {[%clk
0:00:22.4]} 28. b4 {[%clk 0:01:49.8]} 28... axb4 {[%clk 0:00:21.9]} 29. axb4
{[%clk 0:01:50.7]} 29... Kf7 {[%clk 0:00:20.5]} 30. Kf1 {[%clk 0:01:48]} 30...
Bc7 {[%clk 0:00:16.8]} 31. Rab1 {[%clk 0:01:47.3]} 31... Nc4 {[%clk 0:00:16.2]}
32. b5 {[%clk 0:01:41.7]} 32... Na3 {[%clk 0:00:16]} 33. b6 {[%clk 0:01:38.9]}
33... Nxb1 {[%clk 0:00:15]} 34. Rxb1 {[%clk 0:01:30.9]} 34... Bb8 {[%clk
0:00:14.4]} 35. g4 {[%clk 0:01:27.9]} 35... Be5 {[%clk 0:00:13.9]} 36. Bf3
{[%clk 0:01:24.7]} 36... Bxd4 {[%clk 0:00:13.6]} 37. exd4 {[%clk 0:01:25.6]}
37... Rd7 {[%clk 0:00:13.4]} 38. Ra1 {[%clk 0:01:07.7]} 38... Rxd4 {[%clk
0:00:12.5]} 39. Ra7 {[%clk 0:01:07.9]} 39... Re7 {[%clk 0:00:11.8]} 40. Be2
{[%clk 0:00:54.6]} 40... Rd5 {[%clk 0:00:08.4]} 41. Bc4 {[%clk 0:00:54]} 41...
Ke6 {[%clk 0:00:08.4]} 42. Ra8 {[%clk 0:00:50]} 42... Ke5 {[%clk 0:00:08.3]} 43.
Bxd5 {[%clk 0:00:47.4]} 43... Kxd5 {[%clk 0:00:09.2]} 44. Ra5 {[%clk 0:00:45.3]}
44... Kc4 {[%clk 0:00:08]} 45. Kg2 {[%clk 0:00:24]} 45... Kb4 {[%clk 0:00:08.1]}
46. Ra1 {[%clk 0:00:23.5]} 46... Kxc5 {[%clk 0:00:08.3]} 47. Rb1 {[%clk
0:00:24.1]} 47... Re4 {[%clk 0:00:08.1]} 48. Rb3 {[%clk 0:00:22.5]} 48... Rb4
{[%clk 0:00:07.9]} 49. Rf3 {[%clk 0:00:22.3]} 49... Kxb6 {[%clk 0:00:06.7]} 50.
Rxf6 {[%clk 0:00:22.6]} 50... Rb5 {[%clk 0:00:07.1]} 51. h4 {[%clk 0:00:21.2]}
51... gxh4 {[%clk 0:00:06.9]} 52. f4 {[%clk 0:00:20.6]} 52... Ka5 {[%clk
0:00:03.9]} 53. g5 {[%clk 0:00:20.1]} 53... c5 {[%clk 0:00:03.4]} 54. Rf8 {[%clk
0:00:18.6]} 54... Rb3 {[%clk 0:00:02]} 55. Kh2 {[%clk 0:00:14.4]} 55... c4
{[%clk 0:00:01.9]} 56. g6 {[%clk 0:00:12.7]} 56... Rg3 {[%clk 0:00:01.8]} 57. f5
{[%clk 0:00:11.9]} 57... c3 {[%clk 0:00:01.3]} 58. Rc8 {[%clk 0:00:11.4]} 58...
b5 {[%clk 0:00:01.1]} 59. Rc7 {[%clk 0:00:09.3]} 59... Kb4 {[%clk 0:00:01.1]}
60. g7 {[%clk 0:00:09.5]} 1-0

[Event "Early-Titled-Tuesday-Blitz-May-07-2024"]
[Site "Chess.com"]
[Date "2024.05.07"]
[Round "5"]
[White "ChadBiryani"]
[Black "djokovic74"]
[Result "0-1"]
[WhiteElo "2566"]
[BlackElo "2818"]
[TimeControl "180+1"]
[EndTime "9:00:28 PDT"]
[Termination "djokovic74 won by checkmate"]

1. d4 {[%clk 0:03:00.3]} 1... e6 {[%clk 0:02:59.5]} 2. Bf4 {[%clk 0:02:58]} 2...
Nf6 {[%clk 0:02:59.9]} 3. e3 {[%clk 0:02:58.4]} 3... d5 {[%clk 0:03:00.2]} 4.
Nf3 {[%clk 0:02:52.7]} 4... Bd6 {[%clk 0:03:00.4]} 5. Bd3 {[%clk 0:02:52.1]}
5... O-O {[%clk 0:03:00.9]} 6. O-O {[%clk 0:02:51.5]} 6... c5 {[%clk 0:03:00.4]}
7. dxc5 {[%clk 0:02:50.4]} 7... Bxf4 {[%clk 0:02:57.3]} 8. exf4 {[%clk
0:02:50.4]} 8... Qc7 {[%clk 0:02:58.2]} 9. b4 {[%clk 0:02:42.3]} 9... Qxf4
{[%clk 0:02:57.5]} 10. a3 {[%clk 0:02:36.6]} 10... Nc6 {[%clk 0:02:44.9]} 11.
Re1 {[%clk 0:02:34.5]} 11... a6 {[%clk 0:02:37.5]} 12. Nc3 {[%clk 0:02:27.3]}
12... Qc7 {[%clk 0:02:30.5]} 13. Qe2 {[%clk 0:01:43.6]} 13... Re8 {[%clk
0:02:29]} 14. Na4 {[%clk 0:01:32.1]} 14... e5 {[%clk 0:02:24.4]} 15. Nd2 {[%clk
0:01:02.5]} 15... e4 {[%clk 0:02:15.3]} 16. f3 {[%clk 0:01:03]} 16... Bf5 {[%clk
0:02:15.3]} 17. fxe4 {[%clk 0:01:01.2]} 17... dxe4 {[%clk 0:02:15.3]} 18. Bc4
{[%clk 0:00:56.9]} 18... Nd4 {[%clk 0:02:00]} 19. Qf1 {[%clk 0:00:43.7]} 19...
Ng4 {[%clk 0:01:25.3]} 20. g3 {[%clk 0:00:43.4]} 20... e3 {[%clk 0:01:21.1]} 21.
Nb3 {[%clk 0:00:31.7]} 21... Nxb3 {[%clk 0:01:14.4]} 22. Bxb3 {[%clk 0:00:29.2]}
22... Nf2 {[%clk 0:01:00.5]} 23. Rxe3 {[%clk 0:00:18.6]} 23... Rxe3 {[%clk
0:00:53.1]} 24. Qxf2 {[%clk 0:00:18.8]} 24... Qe5 {[%clk 0:00:53.7]} 25. Rf1
{[%clk 0:00:18.1]} 25... Be6 {[%clk 0:00:47.4]} 26. Nb6 {[%clk 0:00:15.7]} 26...
Rf8 {[%clk 0:00:38.3]} 27. Nc4 {[%clk 0:00:10.3]} 27... Bxc4 {[%clk 0:00:38.2]}
28. Bxc4 {[%clk 0:00:10.9]} 28... g6 {[%clk 0:00:38.1]} 29. a4 {[%clk
0:00:07.7]} 29... Kg7 {[%clk 0:00:35.6]} 30. Bb3 {[%clk 0:00:03.8]} 30... f5
{[%clk 0:00:27.5]} 31. Qf4 {[%clk 0:00:04]} 31... Qe7 {[%clk 0:00:17.8]} 32.
Qd4+ {[%clk 0:00:03.6]} 32... Re5 {[%clk 0:00:16.2]} 33. Re1 {[%clk 0:00:03.2]}
33... Re8 {[%clk 0:00:16.7]} 34. Rxe5 {[%clk 0:00:03.2]} 34... Qxe5 {[%clk
0:00:17.5]} 35. Qxe5+ {[%clk 0:00:03.8]} 35... Rxe5 {[%clk 0:00:18.4]} 36. Kf2
{[%clk 0:00:04.3]} 36... Kf6 {[%clk 0:00:11.3]} 37. c3 {[%clk 0:00:04.8]} 37...
Ke7 {[%clk 0:00:11.5]} 38. Bc2 {[%clk 0:00:04.4]} 38... Kd7 {[%clk 0:00:10.6]}
39. Bd3 {[%clk 0:00:04]} 39... Kc7 {[%clk 0:00:10.8]} 40. Bc4 {[%clk 0:00:04]}
40... Re4 {[%clk 0:00:10]} 41. Bd3 {[%clk 0:00:04]} 41... Re5 {[%clk 0:00:10.2]}
42. h3 {[%clk 0:00:03.5]} 42... a5 {[%clk 0:00:10]} 43. bxa5 {[%clk 0:00:02.3]}
43... Rxc5 {[%clk 0:00:10.3]} 44. a6 {[%clk 0:00:02.2]} 44... bxa6 {[%clk
0:00:08.3]} 45. Bxa6 {[%clk 0:00:02.5]} 45... Rxc3 {[%clk 0:00:09.1]} 46. Bb5
{[%clk 0:00:02.8]} 46... Ra3 {[%clk 0:00:09.4]} 47. Kg2 {[%clk 0:00:01.7]} 47...
Kd6 {[%clk 0:00:09.9]} 48. h4 {[%clk 0:00:02.3]} 48... Ke5 {[%clk 0:00:10.3]}
49. Bc6 {[%clk 0:00:01.7]} 49... h6 {[%clk 0:00:10.2]} 50. Kf2 {[%clk
0:00:01.6]} 50... Ra2+ {[%clk 0:00:10.1]} 51. Kf3 {[%clk 0:00:01.8]} 51... Ra3+
{[%clk 0:00:11]} 52. Kf2 {[%clk 0:00:02.4]} 52... Kf6 {[%clk 0:00:11]} 53. Kg2
{[%clk 0:00:02.5]} 53... g5 {[%clk 0:00:10.7]} 54. hxg5+ {[%clk 0:00:03.4]}
54... Kxg5 {[%clk 0:00:11.6]} 55. Kf2 {[%clk 0:00:04.1]} 55... Kg4 {[%clk
0:00:11.2]} 56. Bd7 {[%clk 0:00:04.1]} 56... Ra2+ {[%clk 0:00:09.4]} 57. Ke3
{[%clk 0:00:03.7]} 57... Kxg3 {[%clk 0:00:08.1]} 58. Bxf5 {[%clk 0:00:03.8]}
58... Rxa4 {[%clk 0:00:08.5]} 59. Ke2 {[%clk 0:00:04]} 59... Rf4 {[%clk
0:00:07.7]} 60. Bd7 {[%clk 0:00:03.7]} 60... h5 {[%clk 0:00:08]} 61. Bc6 {[%clk
0:00:03.6]} 61... h4 {[%clk 0:00:08.4]} 62. Ke3 {[%clk 0:00:04.1]} 62... h3
{[%clk 0:00:08.5]} 63. Ke2 {[%clk 0:00:04.8]} 63... h2 {[%clk 0:00:08.4]} 64.
Bd5 {[%clk 0:00:04.7]} 64... Rf2+ {[%clk 0:00:07.8]} 65. Ke1 {[%clk 0:00:04.9]}
65... Rg2 {[%clk 0:00:08.1]} 66. Kf1 {[%clk 0:00:04.7]} 66... h1=Q# {[%clk
0:00:07.6]} 0-1